[Event "*** Titled Tuesday Blitz"]
[Site "Chess.com"]
[Date "2020.05.19"]
[Round "9"]
[White "Margarita2907"]
[Black "Justinz"]
[Result "0-1"]
[WhiteElo "2048"]
[BlackElo "2313"]
[TimeControl "180+1"]
[EndTime "13:48:17 PDT"]
[Termination "Justinz won by resignation"]

1. d4 {[%clk 0:02:55.8]} 1... Nf6 {[%clk 0:02:57]} 2. Nf3 {[%clk 0:02:56.3]}
2... e6 {[%clk 0:02:56.3]} 3. e3 {[%clk 0:02:56.9]} 3... b6 {[%clk 0:02:55.2]}
4. Bd3 {[%clk 0:02:56.3]} 4... Bb7 {[%clk 0:02:55]} 5. O-O {[%clk 0:02:56.9]}
5... d5 {[%clk 0:02:54]} 6. b3 {[%clk 0:02:55.4]} 6... Nbd7 {[%clk 0:02:52.1]}
7. Bb2 {[%clk 0:02:56]} 7... Be7 {[%clk 0:02:51.8]} 8. Nbd2 {[%clk 0:02:56.5]}
8... O-O {[%clk 0:02:51.4]} 9. Qe2 {[%clk 0:02:57.1]} 9... c5 {[%clk 0:02:51]}
10. c4 {[%clk 0:02:57.5]} 10... Rc8 {[%clk 0:02:49.5]} 11. Ne5 {[%clk
0:02:55.9]} 11... Rc7 {[%clk 0:02:47.5]} 12. f4 {[%clk 0:02:53.1]} 12... Qa8
{[%clk 0:02:48]} 13. Ndf3 {[%clk 0:02:43.7]} 13... Rfc8 {[%clk 0:02:45.3]} 14.
f5 {[%clk 0:02:38.7]} 14... exf5 {[%clk 0:02:40.9]} 15. Bxf5 {[%clk 0:02:38.3]}
15... Re8 {[%clk 0:02:40.7]} 16. Qd3 {[%clk 0:02:31.7]} 16... h6 {[%clk
0:02:25.4]} 17. Nxd7 {[%clk 0:02:21.3]} 17... Nxd7 {[%clk 0:02:24.5]} 18. Bxd7
{[%clk 0:02:20.7]} 18... Rxd7 {[%clk 0:02:19.7]} 19. Ne5 {[%clk 0:02:21.1]}
19... Rc7 {[%clk 0:02:17.6]} 20. Nxf7 {[%clk 0:02:18.8]} 20... dxc4 {[%clk
0:02:14.9]} 21. bxc4 {[%clk 0:02:06.6]} 21... Be4 {[%clk 0:02:13.2]} 22. Qe2
{[%clk 0:02:01.9]} 22... Bf6 {[%clk 0:02:11.1]} 23. Nd6 {[%clk 0:01:57.8]} 23...
Ree7 {[%clk 0:02:06.8]} 24. Nxe4 {[%clk 0:01:56.8]} 24... Qxe4 {[%clk
0:02:05.7]} 25. Rae1 {[%clk 0:01:47.7]} 25... cxd4 {[%clk 0:02:04.2]} 26. Qh5
{[%clk 0:01:27.3]} 26... Rc5 {[%clk 0:01:54]} 27. Qh3 {[%clk 0:01:20.8]} 27...
Rxc4 {[%clk 0:01:41.5]} 28. exd4 {[%clk 0:01:09.3]} 28... Bxd4+ {[%clk
0:01:33.1]} 29. Bxd4 {[%clk 0:00:58.3]} 29... Qxd4+ {[%clk 0:01:32.4]} 30. Kh1
{[%clk 0:00:55.3]} 30... Rxe1 {[%clk 0:01:31.7]} 31. Rxe1 {[%clk 0:00:53.6]}
31... Qe4 {[%clk 0:01:14.8]} 32. Qg3 {[%clk 0:00:29.5]} 32... Qc6 {[%clk
0:01:08.6]} 33. h3 {[%clk 0:00:24.3]} 33... Rc1 {[%clk 0:01:01.1]} 34. Rxc1
{[%clk 0:00:18.6]} 34... Qxc1+ {[%clk 0:01:00.6]} 35. Kh2 {[%clk 0:00:19.3]}
35... Qc8 {[%clk 0:01:00.1]} 36. Qb3+ {[%clk 0:00:17.5]} 36... Kh8 {[%clk
0:01:00.3]} 37. Qg3 {[%clk 0:00:17]} 37... a5 {[%clk 0:00:58.9]} 38. Qd6 {[%clk
0:00:16.3]} 38... b5 {[%clk 0:00:51.1]} 39. Qd5 {[%clk 0:00:15.3]} 39... Qc7+
{[%clk 0:00:48.8]} 40. Kh1 {[%clk 0:00:14.3]} 40... b4 {[%clk 0:00:48.8]} 41.
Qa8+ {[%clk 0:00:12.9]} 41... Kh7 {[%clk 0:00:48.3]} 42. Qe4+ {[%clk 0:00:13.4]}
42... g6 {[%clk 0:00:48.7]} 43. Qd3 {[%clk 0:00:11.5]} 43... h5 {[%clk 0:00:48]}
44. Qb3 {[%clk 0:00:10.7]} 44... Qe7 {[%clk 0:00:45.3]} 45. Qa4 {[%clk
0:00:10.4]} 45... Qe1+ {[%clk 0:00:42.7]} 46. Kh2 {[%clk 0:00:09.7]} 46... Qe5+
{[%clk 0:00:42.4]} 47. Kh1 {[%clk 0:00:09]} 47... Qd5 {[%clk 0:00:42.4]} 48. Qc2
{[%clk 0:00:07.1]} 48... Qd6 {[%clk 0:00:34.4]} 49. Qb3 {[%clk 0:00:06.9]} 49...
Kg7 {[%clk 0:00:24.9]} 50. Qf3 {[%clk 0:00:07.2]} 50... Qe5 {[%clk 0:00:19.5]}
51. Qb7+ {[%clk 0:00:07.2]} 51... Kh6 {[%clk 0:00:19.8]} 52. Qf3 {[%clk
0:00:07.2]} 52... Qe1+ {[%clk 0:00:18.9]} 53. Kh2 {[%clk 0:00:06.7]} 53... Qe5+
{[%clk 0:00:19.3]} 54. Kh1 {[%clk 0:00:05.6]} 54... a4 {[%clk 0:00:19.6]} 55.
Qf8+ {[%clk 0:00:04.9]} 55... Kg5 {[%clk 0:00:17.1]} 56. Qxb4 {[%clk 0:00:04.4]}
56... Qe1+ {[%clk 0:00:15.7]} 57. Kh2 {[%clk 0:00:04.1]} 57... Qe5+ {[%clk
0:00:15.7]} 58. Kh1 {[%clk 0:00:03.9]} 58... Qf4 {[%clk 0:00:14.9]} 59. Qb5+
{[%clk 0:00:02.9]} 59... Kh6 {[%clk 0:00:14.3]} 60. Qe8 {[%clk 0:00:02.6]} 60...
Qc1+ {[%clk 0:00:10.9]} 61. Kh2 {[%clk 0:00:03.1]} 61... Qc7+ {[%clk 0:00:10.6]}
62. Kh1 {[%clk 0:00:03.5]} 62... Qc1+ {[%clk 0:00:08.7]} 63. Kh2 {[%clk
0:00:04.4]} 63... Qf4+ {[%clk 0:00:08.3]} 64. Kh1 {[%clk 0:00:05.3]} 64... Qf6
{[%clk 0:00:08.1]} 65. Qd8 {[%clk 0:00:05.8]} 65... Qxd8 {[%clk 0:00:07.5]} 0-1

[Event "*** Titled Tuesday Blitz"]
[Site "Chess.com"]
[Date "2020.05.19"]
[Round "9"]
[White "KuzubovYuriy"]
[Black "Sam_ChessMood"]
[Result "1/2-1/2"]
[WhiteElo "2714"]
[BlackElo "2869"]
[TimeControl "180+1"]
[EndTime "13:48:22 PDT"]
[Termination "Game drawn by agreement"]

1. d4 {[%clk 0:03:00.9]} 1... Nf6 {[%clk 0:02:59.6]} 2. c4 {[%clk 0:03:01.5]}
2... e6 {[%clk 0:02:59.8]} 3. Nc3 {[%clk 0:03:02]} 3... Bb4 {[%clk 0:02:59]} 4.
e3 {[%clk 0:03:02.6]} 4... O-O {[%clk 0:02:58.7]} 5. Ne2 {[%clk 0:03:03.2]} 5...
d5 {[%clk 0:02:55.5]} 6. a3 {[%clk 0:03:03.6]} 6... Bd6 {[%clk 0:02:55.3]} 7.
Ng3 {[%clk 0:03:03.3]} 7... c5 {[%clk 0:02:48.2]} 8. dxc5 {[%clk 0:03:04.2]}
8... Bxc5 {[%clk 0:02:48.2]} 9. b4 {[%clk 0:03:04.9]} 9... Bb6 {[%clk
0:02:40.1]} 10. Bb2 {[%clk 0:02:59.3]} 10... Nc6 {[%clk 0:02:37.7]} 11. cxd5
{[%clk 0:02:49.1]} 11... exd5 {[%clk 0:02:37.3]} 12. Nce2 {[%clk 0:02:43.2]}
12... Re8 {[%clk 0:02:28.8]} 13. Nd4 {[%clk 0:02:35.7]} 13... Ne5 {[%clk
0:02:28.2]} 14. Rc1 {[%clk 0:02:33.2]} 14... Bg4 {[%clk 0:02:14.7]} 15. Qb3
{[%clk 0:02:15.9]} 15... Rc8 {[%clk 0:01:52.3]} 16. Rxc8 {[%clk 0:01:43.3]}
16... Qxc8 {[%clk 0:01:53.2]} 17. Be2 {[%clk 0:01:19.7]} 17... Bxd4 {[%clk
0:01:40.6]} 18. Bxd4 {[%clk 0:01:13.2]} 18... Qc1+ {[%clk 0:01:40.4]} 19. Bd1
{[%clk 0:01:08.9]} 19... Nc4 {[%clk 0:00:50.7]} 20. Qc2 {[%clk 0:00:52.6]} 20...
Qxd1+ {[%clk 0:00:28.4]} 21. Qxd1 {[%clk 0:00:52.8]} 21... Bxd1 {[%clk
0:00:28.9]} 22. Kxd1 {[%clk 0:00:53.7]} 22... Nxa3 {[%clk 0:00:29.2]} 23. Bxf6
{[%clk 0:00:52.4]} 23... gxf6 {[%clk 0:00:29]} 24. Kd2 {[%clk 0:00:49]} 24...
Nc4+ {[%clk 0:00:27.5]} 25. Ke2 {[%clk 0:00:48.1]} 25... d4 {[%clk 0:00:24.5]}
26. Kd3 {[%clk 0:00:45.5]} 26... Ne5+ {[%clk 0:00:23.1]} 27. Kxd4 {[%clk
0:00:45.4]} 27... Rc8 {[%clk 0:00:23.2]} 28. f4 {[%clk 0:00:42]} 28... Nc6+
{[%clk 0:00:18.8]} 29. Kc3 {[%clk 0:00:40.9]} 29... Kf8 {[%clk 0:00:16.6]} 30.
Rd1 {[%clk 0:00:39.1]} 30... Nd4+ {[%clk 0:00:13.7]} 31. Kd3 {[%clk 0:00:38.9]}
31... Nb5 {[%clk 0:00:10.6]} 32. Rb1 {[%clk 0:00:25.9]} 32... Rc3+ {[%clk
0:00:09.9]} 33. Ke2 {[%clk 0:00:24]} 33... Ke7 {[%clk 0:00:10.2]} 34. Ne4 {[%clk
0:00:20.6]} 34... Rc4 {[%clk 0:00:07.9]} 35. Nd2 {[%clk 0:00:18.3]} 35... Rc2
{[%clk 0:00:06.1]} 36. Kd3 {[%clk 0:00:17.7]} 36... Rc3+ {[%clk 0:00:06.5]} 37.
Ke2 {[%clk 0:00:17.8]} 37... Rc2 {[%clk 0:00:07]} 38. Ra1 {[%clk 0:00:17.7]}
38... a6 {[%clk 0:00:06.7]} 39. Kd3 {[%clk 0:00:15.6]} 39... Rb2 {[%clk
0:00:07]} 40. Ne4 {[%clk 0:00:14.5]} 40... Rxg2 {[%clk 0:00:06.3]} 41. Rc1
{[%clk 0:00:13.2]} 41... Rxh2 {[%clk 0:00:04.8]} 42. Rc8 {[%clk 0:00:11.9]}
42... Rb2 {[%clk 0:00:04.6]} 43. Rb8 {[%clk 0:00:10.8]} 43... Nd6 {[%clk
0:00:04.9]} 44. Nxd6 {[%clk 0:00:09.8]} 44... Kxd6 {[%clk 0:00:05.2]} 45. Rxb7
{[%clk 0:00:10.4]} 45... a5 {[%clk 0:00:04.8]} 46. Rxf7 {[%clk 0:00:09.9]} 46...
Ke6 {[%clk 0:00:05]} 47. Rxh7 {[%clk 0:00:09.3]} 47... axb4 {[%clk 0:00:05.4]}
48. e4 {[%clk 0:00:09.2]} 48... Rb1 {[%clk 0:00:04.8]} 49. f5+ {[%clk
0:00:08.8]} 49... Ke5 {[%clk 0:00:05.2]} 50. Re7+ {[%clk 0:00:09.1]} 50... Kf4
{[%clk 0:00:05.7]} 51. Re6 {[%clk 0:00:09.5]} 51... b3 {[%clk 0:00:04]} 52. Rxf6
{[%clk 0:00:08]} 52... b2 {[%clk 0:00:03.5]} 53. Kc2 {[%clk 0:00:07.8]} 53...
Re1 {[%clk 0:00:02.7]} 54. Kxb2 {[%clk 0:00:08]} 54... Rxe4 {[%clk 0:00:03.4]}
55. Rf7 {[%clk 0:00:07.6]} 55... Re5 {[%clk 0:00:03.9]} 56. f6 {[%clk
0:00:07.3]} 56... Kf5 {[%clk 0:00:04.4]} 57. Rf8 {[%clk 0:00:07.4]} 57... Re6
{[%clk 0:00:04.9]} 58. f7 {[%clk 0:00:07.5]} 58... Kf6 {[%clk 0:00:05.5]} 59.
Re8 {[%clk 0:00:07.7]} 59... Rb6+ {[%clk 0:00:05.8]} 60. Kc3 {[%clk 0:00:08]}
60... Kxf7 {[%clk 0:00:06.7]} 61. Rc8 {[%clk 0:00:07.6]} 61... Re6 {[%clk
0:00:06.9]} 62. Rc4 {[%clk 0:00:07.6]} 62... Re7 {[%clk 0:00:07]} 63. Kb4 {[%clk
0:00:08]} 63... Re6 {[%clk 0:00:07.3]} 64. Kc5 {[%clk 0:00:08.4]} 64... Re7
{[%clk 0:00:07.5]} 65. Rd4 {[%clk 0:00:08.7]} 65... Re6 {[%clk 0:00:07.1]} 66.
Kc4 {[%clk 0:00:09.2]} 66... Re7 {[%clk 0:00:07.2]} 67. Kd3 {[%clk 0:00:09.6]}
67... Re6 {[%clk 0:00:07.3]} 68. Rf4+ {[%clk 0:00:09.9]} 68... Rf6 {[%clk
0:00:07.4]} 69. Re4 {[%clk 0:00:10.3]} 69... Re6 {[%clk 0:00:07.6]} 70. Ra4
{[%clk 0:00:10.7]} 70... Re7 {[%clk 0:00:07.4]} 71. Kc2 {[%clk 0:00:10.9]} 71...
Re6 {[%clk 0:00:07.8]} 72. Kb1 {[%clk 0:00:11.1]} 72... Kf6 {[%clk 0:00:07.7]}
73. Rf4+ {[%clk 0:00:08.3]} 73... Ke5 {[%clk 0:00:07.6]} 74. Rf2 {[%clk
0:00:07.3]} 1/2-1/2

[Event "*** Titled Tuesday Blitz"]
[Site "Chess.com"]
[Date "2020.05.19"]
[Round "9"]
[White "Nikolaj_6"]
[Black "PavelChernomordik"]
[Result "1-0"]
[WhiteElo "2576"]
[BlackElo "2407"]
[TimeControl "180+1"]
[EndTime "13:48:24 PDT"]
[Termination "Nikolaj_6 won on time"]

1. e4 {[%clk 0:03:00.9]} 1... g6 {[%clk 0:02:56.2]} 2. d4 {[%clk 0:03:00.5]}
2... Bg7 {[%clk 0:02:53]} 3. c4 {[%clk 0:02:59.5]} 3... Nc6 {[%clk 0:02:50.7]}
4. d5 {[%clk 0:02:55.8]} 4... Nd4 {[%clk 0:02:49.5]} 5. Ne2 {[%clk 0:02:55.7]}
5... e5 {[%clk 0:02:48.4]} 6. Nxd4 {[%clk 0:02:51.4]} 6... exd4 {[%clk
0:02:47.7]} 7. Bd3 {[%clk 0:02:51]} 7... d6 {[%clk 0:02:47.6]} 8. O-O {[%clk
0:02:50.9]} 8... Nf6 {[%clk 0:02:45.3]} 9. h3 {[%clk 0:02:47.7]} 9... O-O {[%clk
0:02:43.2]} 10. Bg5 {[%clk 0:02:47]} 10... c6 {[%clk 0:02:37.4]} 11. Nd2 {[%clk
0:02:35.4]} 11... h6 {[%clk 0:02:33.8]} 12. Bh4 {[%clk 0:02:34.8]} 12... Qb6
{[%clk 0:02:28.6]} 13. Rb1 {[%clk 0:02:30.7]} 13... Re8 {[%clk 0:02:19.2]} 14.
Re1 {[%clk 0:02:25.1]} 14... a5 {[%clk 0:02:17.2]} 15. b3 {[%clk 0:02:23.1]}
15... Nh5 {[%clk 0:02:09.4]} 16. Bf1 {[%clk 0:02:06.6]} 16... Bd7 {[%clk
0:02:00.3]} 17. Rc1 {[%clk 0:01:46.5]} 17... a4 {[%clk 0:01:52.1]} 18. c5 {[%clk
0:01:34.8]} 18... dxc5 {[%clk 0:01:50.2]} 19. Nc4 {[%clk 0:01:34.8]} 19... Qa7
{[%clk 0:01:50]} 20. bxa4 {[%clk 0:01:32]} 20... cxd5 {[%clk 0:01:46]} 21. exd5
{[%clk 0:01:31.5]} 21... Bxa4 {[%clk 0:01:45.2]} 22. Qd2 {[%clk 0:01:29.4]}
22... g5 {[%clk 0:01:36.6]} 23. Bg3 {[%clk 0:01:22.2]} 23... Nxg3 {[%clk
0:01:35.7]} 24. fxg3 {[%clk 0:01:22.7]} 24... Rad8 {[%clk 0:01:34.8]} 25. Rxe8+
{[%clk 0:01:20.3]} 25... Bxe8 {[%clk 0:01:32.6]} 26. Re1 {[%clk 0:01:13.7]}
26... Bb5 {[%clk 0:01:22.2]} 27. d6 {[%clk 0:01:09.9]} 27... Qa6 {[%clk
0:01:16.2]} 28. Qc2 {[%clk 0:01:07.5]} 28... Bxc4 {[%clk 0:01:13.7]} 29. Bxc4
{[%clk 0:01:06.8]} 29... Qxd6 {[%clk 0:01:13.8]} 30. Qf5 {[%clk 0:01:05.4]}
30... Qf6 {[%clk 0:01:11.4]} 31. Qxc5 {[%clk 0:01:01.5]} 31... d3 {[%clk
0:01:06.2]} 32. Rf1 {[%clk 0:00:58.7]} 32... Qd4+ {[%clk 0:01:05.2]} 33. Qxd4
{[%clk 0:00:58.5]} 33... Bxd4+ {[%clk 0:01:04.8]} 34. Kh2 {[%clk 0:00:58.6]}
34... d2 {[%clk 0:00:56]} 35. Rxf7 {[%clk 0:00:56.2]} 35... Kh8 {[%clk
0:00:52.1]} 36. Bb3 {[%clk 0:00:53.8]} 36... Bg7 {[%clk 0:00:46]} 37. Rf1 {[%clk
0:00:49.9]} 37... Be5 {[%clk 0:00:44.7]} 38. Bd1 {[%clk 0:00:43.1]} 38... Rd3
{[%clk 0:00:42.7]} 39. Rf3 {[%clk 0:00:43]} 39... Rd7 {[%clk 0:00:37]} 40. Kg1
{[%clk 0:00:41.8]} 40... Kg7 {[%clk 0:00:34.8]} 41. Kf2 {[%clk 0:00:41.5]} 41...
b6 {[%clk 0:00:27.9]} 42. Ke2 {[%clk 0:00:39.9]} 42... Bc7 {[%clk 0:00:26.4]}
43. g4 {[%clk 0:00:38]} 43... Bf4 {[%clk 0:00:25.2]} 44. g3 {[%clk 0:00:38.1]}
44... Be5 {[%clk 0:00:25.1]} 45. a4 {[%clk 0:00:31.9]} 45... Rd4 {[%clk
0:00:22.3]} 46. Re3 {[%clk 0:00:29.9]} 46... Kf6 {[%clk 0:00:21.1]} 47. Rf3+
{[%clk 0:00:27.5]} 47... Ke7 {[%clk 0:00:20.3]} 48. Rb3 {[%clk 0:00:25.4]} 48...
Rd6 {[%clk 0:00:18.8]} 49. Re3 {[%clk 0:00:22.4]} 49... Kf6 {[%clk 0:00:18]} 50.
h4 {[%clk 0:00:22.8]} 50... Rd4 {[%clk 0:00:14.7]} 51. Rf3+ {[%clk 0:00:21.6]}
51... Ke7 {[%clk 0:00:13.9]} 52. Rb3 {[%clk 0:00:20.1]} 52... Rd6 {[%clk
0:00:12.7]} 53. Re3 {[%clk 0:00:19.5]} 53... Re6 {[%clk 0:00:12.1]} 54. Bb3
{[%clk 0:00:18.3]} 54... d1=Q+ {[%clk 0:00:11]} 55. Kxd1 {[%clk 0:00:16.7]}
55... Rd6+ {[%clk 0:00:11.2]} 56. Ke2 {[%clk 0:00:16.9]} 56... Kf6 {[%clk
0:00:10.9]} 57. Rf3+ {[%clk 0:00:17]} 57... Ke7 {[%clk 0:00:09.5]} 58. Rf5
{[%clk 0:00:16.7]} 58... Bxg3 {[%clk 0:00:07.6]} 59. hxg5 {[%clk 0:00:16.9]}
59... hxg5 {[%clk 0:00:07]} 60. Rxg5 {[%clk 0:00:17.2]} 60... Rd2+ {[%clk
0:00:06.6]} 61. Kf1 {[%clk 0:00:14.5]} 61... Bd6 {[%clk 0:00:06.1]} 62. Rb5
{[%clk 0:00:13.8]} 62... Bc5 {[%clk 0:00:05]} 63. a5 {[%clk 0:00:12.6]} 63...
Rf2+ {[%clk 0:00:04.1]} 64. Ke1 {[%clk 0:00:12.6]} 64... Rf6 {[%clk 0:00:01.4]}
65. a6 {[%clk 0:00:12.5]} 65... Rf8 {[%clk 0:00:01.4]} 66. Bd5 {[%clk
0:00:11.7]} 66... Kd6 {[%clk 0:00:01.4]} 67. Bg2 {[%clk 0:00:09.3]} 67... Rf7
{[%clk 0:00:01.3]} 68. Bb7 {[%clk 0:00:07.8]} 1-0

[Event "*** Titled Tuesday Blitz"]
[Site "Chess.com"]
[Date "2020.05.19"]
[Round "9"]
[White "GlennTipton"]
[Black "Kezin_Roman"]
[Result "1-0"]
[WhiteElo "2529"]
[BlackElo "2742"]
[TimeControl "180+1"]
[EndTime "13:48:25 PDT"]
[Termination "GlennTipton won on time"]

1. e4 {[%clk 0:02:59.2]} 1... c5 {[%clk 0:02:59.6]} 2. Nc3 {[%clk 0:02:57.9]}
2... Nc6 {[%clk 0:02:59.8]} 3. f4 {[%clk 0:02:58.1]} 3... g6 {[%clk 0:02:59.9]}
4. Nf3 {[%clk 0:02:58.6]} 4... Bg7 {[%clk 0:03:00.3]} 5. Bb5 {[%clk 0:02:58.8]}
5... Nd4 {[%clk 0:03:00]} 6. Bd3 {[%clk 0:02:58.9]} 6... e6 {[%clk 0:02:55.5]}
7. Nxd4 {[%clk 0:02:58]} 7... cxd4 {[%clk 0:02:54.6]} 8. Nb5 {[%clk 0:02:58.2]}
8... d6 {[%clk 0:02:55]} 9. c3 {[%clk 0:02:58.3]} 9... dxc3 {[%clk 0:02:26.2]}
10. dxc3 {[%clk 0:02:59.2]} 10... a6 {[%clk 0:02:20.4]} 11. Qa4 {[%clk
0:02:58.3]} 11... Kf8 {[%clk 0:02:16.2]} 12. Qa3 {[%clk 0:02:57.8]} 12... Ne7
{[%clk 0:02:01.1]} 13. Nxd6 {[%clk 0:02:53]} 13... Qb6 {[%clk 0:01:46.8]} 14.
Nc4 {[%clk 0:02:52.1]} 14... Qc7 {[%clk 0:01:47.2]} 15. Be3 {[%clk 0:02:48.7]}
15... b5 {[%clk 0:01:15.3]} 16. Nd6 {[%clk 0:02:22.8]} 16... Bb7 {[%clk
0:01:05.3]} 17. Nxb7 {[%clk 0:01:56.1]} 17... Qxb7 {[%clk 0:01:06.2]} 18. Bc5
{[%clk 0:01:43]} 18... Re8 {[%clk 0:00:53.1]} 19. O-O {[%clk 0:01:43.1]} 19...
Kg8 {[%clk 0:00:51.6]} 20. f5 {[%clk 0:01:38.9]} 20... Nc6 {[%clk 0:00:21.9]}
21. f6 {[%clk 0:01:31.8]} 21... Bf8 {[%clk 0:00:21.9]} 22. Bxf8 {[%clk
0:01:30.8]} 22... Rxf8 {[%clk 0:00:22.8]} 23. Qc5 {[%clk 0:01:29.6]} 23... Rc8
{[%clk 0:00:14.8]} 24. Rad1 {[%clk 0:01:11.2]} 24... Qc7 {[%clk 0:00:12.2]} 25.
a4 {[%clk 0:00:58.8]} 25... h5 {[%clk 0:00:07.3]} 26. axb5 {[%clk 0:00:57.5]}
26... axb5 {[%clk 0:00:08.2]} 27. Bxb5 {[%clk 0:00:56.1]} 27... Ne5 {[%clk
0:00:07.6]} 28. Qxc7 {[%clk 0:00:45.2]} 28... Rxc7 {[%clk 0:00:08.5]} 29. Rd8+
{[%clk 0:00:32.5]} 29... Kh7 {[%clk 0:00:09.1]} 30. Rxh8+ {[%clk 0:00:32.8]}
30... Kxh8 {[%clk 0:00:10]} 31. c4 {[%clk 0:00:28.4]} 31... g5 {[%clk
0:00:06.9]} 32. Rd1 {[%clk 0:00:15.1]} 32... Kh7 {[%clk 0:00:07.2]} 33. h3
{[%clk 0:00:14.5]} 33... Kg6 {[%clk 0:00:07.6]} 34. b4 {[%clk 0:00:14.8]} 34...
Kxf6 {[%clk 0:00:06.6]} 35. Rd4 {[%clk 0:00:13.3]} 35... Ra7 {[%clk 0:00:06]}
36. c5 {[%clk 0:00:12.4]} 36... Ra1+ {[%clk 0:00:06]} 37. Bf1 {[%clk 0:00:12.2]}
37... Rb1 {[%clk 0:00:04.9]} 38. b5 {[%clk 0:00:11.8]} 38... g4 {[%clk
0:00:04.9]} 39. c6 {[%clk 0:00:10.8]} 39... gxh3 {[%clk 0:00:05]} 40. c7 {[%clk
0:00:10.8]} 40... Rxf1+ {[%clk 0:00:03.1]} 41. Kxf1 {[%clk 0:00:10.7]} 41... h2
{[%clk 0:00:04]} 42. c8=Q {[%clk 0:00:10.7]} 42... h1=Q+ {[%clk 0:00:04.9]} 43.
Kf2 {[%clk 0:00:08.9]} 43... Ng4+ {[%clk 0:00:05.4]} 44. Ke2 {[%clk 0:00:07.7]}
44... Qxg2+ {[%clk 0:00:05.7]} 45. Kd3 {[%clk 0:00:08.6]} 45... Qf3+ {[%clk
0:00:05]} 46. Kd2 {[%clk 0:00:08.2]} 46... Qe3+ {[%clk 0:00:05]} 47. Kc2 {[%clk
0:00:07]} 47... Qf2+ {[%clk 0:00:04.3]} 48. Kc3 {[%clk 0:00:06.4]} 48... Qe3+
{[%clk 0:00:04.2]} 49. Kc2 {[%clk 0:00:05.1]} 49... Qe2+ {[%clk 0:00:02.4]} 50.
Rd2 {[%clk 0:00:03.1]} 50... Qxe4+ {[%clk 0:00:02.2]} 51. Kb2 {[%clk 0:00:03.1]}
51... Qe5+ {[%clk 0:00:02.1]} 52. Qc3 {[%clk 0:00:03.9]} 52... Qxc3+ {[%clk
0:00:02]} 53. Kxc3 {[%clk 0:00:04.4]} 53... Ne3 {[%clk 0:00:02.9]} 54. b6 {[%clk
0:00:04.8]} 1-0

[Event "*** Titled Tuesday Blitz"]
[Site "Chess.com"]
[Date "2020.05.19"]
[Round "9"]
[White "szefru"]
[Black "MaxLeto"]
[Result "0-1"]
[WhiteElo "2160"]
[BlackElo "2326"]
[TimeControl "180+1"]
[EndTime "13:48:25 PDT"]
[Termination "MaxLeto won by resignation"]

1. e4 {[%clk 0:03:00.9]} 1... c5 {[%clk 0:02:49.3]} 2. Nf3 {[%clk 0:03:00.4]}
2... d6 {[%clk 0:02:49]} 3. d4 {[%clk 0:03:00]} 3... cxd4 {[%clk 0:02:49.4]} 4.
Qxd4 {[%clk 0:03:00.9]} 4... a6 {[%clk 0:02:48.6]} 5. c4 {[%clk 0:03:00.2]} 5...
Nc6 {[%clk 0:02:48.5]} 6. Qd3 {[%clk 0:03:00.1]} 6... g6 {[%clk 0:02:49]} 7. Nc3
{[%clk 0:02:59.4]} 7... Bg7 {[%clk 0:02:49.5]} 8. Be2 {[%clk 0:02:58.8]} 8...
Nf6 {[%clk 0:02:42.2]} 9. O-O {[%clk 0:02:58.1]} 9... O-O {[%clk 0:02:42.2]} 10.
h3 {[%clk 0:02:58.1]} 10... Be6 {[%clk 0:02:18]} 11. Rb1 {[%clk 0:02:48.8]}
11... Nd7 {[%clk 0:01:59.9]} 12. Ng5 {[%clk 0:02:12.4]} 12... Nde5 {[%clk
0:01:25.9]} 13. Nxe6 {[%clk 0:02:11.5]} 13... Nxd3 {[%clk 0:00:55]} 14. Nxd8
{[%clk 0:02:10.7]} 14... Nxc1 {[%clk 0:00:55.6]} 15. Rfxc1 {[%clk 0:01:53.7]}
15... Rfxd8 {[%clk 0:00:52.3]} 16. b3 {[%clk 0:01:44.8]} 16... Bxc3 {[%clk
0:00:46.4]} 17. Rxc3 {[%clk 0:01:44]} 17... Nd4 {[%clk 0:00:46.7]} 18. Bf1
{[%clk 0:01:39.2]} 18... Rac8 {[%clk 0:00:43.4]} 19. Rd3 {[%clk 0:01:38.7]}
19... e5 {[%clk 0:00:43.4]} 20. g3 {[%clk 0:01:27]} 20... b5 {[%clk 0:00:39.7]}
21. cxb5 {[%clk 0:01:26.1]} 21... axb5 {[%clk 0:00:40.6]} 22. Rbd1 {[%clk
0:01:18.5]} 22... Rc2 {[%clk 0:00:38.9]} 23. a3 {[%clk 0:01:13]} 23... Ra2
{[%clk 0:00:30.6]} 24. b4 {[%clk 0:01:12.5]} 24... Rc8 {[%clk 0:00:21.3]} 25.
Bg2 {[%clk 0:00:43.4]} 25... Rcc2 {[%clk 0:00:18.9]} 26. Rf1 {[%clk 0:00:42.9]}
26... Kf8 {[%clk 0:00:11.5]} 27. Bh1 {[%clk 0:00:42.6]} 27... Ke7 {[%clk
0:00:11.5]} 28. f4 {[%clk 0:00:42.8]} 28... f6 {[%clk 0:00:10.3]} 29. fxe5
{[%clk 0:00:42.9]} 29... dxe5 {[%clk 0:00:11]} 30. g4 {[%clk 0:00:40.8]} 30...
Rh2 {[%clk 0:00:08.5]} 31. Rg3 {[%clk 0:00:40.1]} 31... Rhd2 {[%clk 0:00:02.6]}
32. Re3 {[%clk 0:00:38.8]} 32... Ne2+ {[%clk 0:00:03]} 33. Kf2 {[%clk
0:00:38.2]} 33... Nf4+ {[%clk 0:00:03.4]} 34. Kf3 {[%clk 0:00:37.7]} 34... Nd3
{[%clk 0:00:02.9]} 35. Kg3 {[%clk 0:00:36.5]} 35... Nb2 {[%clk 0:00:02.9]} 36.
Ref3 {[%clk 0:00:35.9]} 36... Rd3 {[%clk 0:00:03.3]} 37. Kh4 {[%clk 0:00:29.3]}
37... Rxf3 {[%clk 0:00:03.2]} 38. Rxf3 {[%clk 0:00:28.3]} 38... Nc4 {[%clk
0:00:04.1]} 39. g5 {[%clk 0:00:26.3]} 39... fxg5+ {[%clk 0:00:04.7]} 40. Kxg5
{[%clk 0:00:27.2]} 40... Rxa3 {[%clk 0:00:05.4]} 41. Rf1 {[%clk 0:00:26.3]}
41... Rg3+ {[%clk 0:00:05.4]} 42. Kh4 {[%clk 0:00:25.4]} 42... Rb3 {[%clk
0:00:05.4]} 43. Bf3 {[%clk 0:00:25.2]} 43... Rxb4 {[%clk 0:00:05.8]} 44. Bg4
{[%clk 0:00:25.4]} 44... Rb3 {[%clk 0:00:06.1]} 45. Rd1 {[%clk 0:00:25.4]} 45...
Re3 {[%clk 0:00:06.3]} 46. Rd7+ {[%clk 0:00:25.2]} 46... Kf6 {[%clk 0:00:06.9]}
47. Rb7 {[%clk 0:00:23.6]} 47... Rxe4 {[%clk 0:00:06.1]} 48. Rxb5 {[%clk
0:00:23.5]} 48... h5 {[%clk 0:00:06.6]} 49. Rb6+ {[%clk 0:00:22.6]} 49... Ke7
{[%clk 0:00:06.8]} 50. Rxg6 {[%clk 0:00:21.4]} 50... hxg4 {[%clk 0:00:06.5]} 51.
hxg4 {[%clk 0:00:21.9]} 51... Rf4 {[%clk 0:00:05.3]} 52. Rc6 {[%clk 0:00:20.4]}
52... Nd6 {[%clk 0:00:05.2]} 53. Kh5 {[%clk 0:00:18]} 53... Rf8 {[%clk
0:00:04.1]} 54. g5 {[%clk 0:00:17.6]} 54... e4 {[%clk 0:00:04.2]} 55. Rc5 {[%clk
0:00:16.4]} 55... Rf5 {[%clk 0:00:03.6]} 56. Rc3 {[%clk 0:00:14]} 56... Nf7
{[%clk 0:00:03]} 57. Re3 {[%clk 0:00:10.6]} 57... Nxg5 {[%clk 0:00:03.2]} 58.
Kg4 {[%clk 0:00:10.6]} 58... Kf6 {[%clk 0:00:03.9]} 59. Re1 {[%clk 0:00:09.3]}
59... Re5 {[%clk 0:00:04.2]} 60. Rf1+ {[%clk 0:00:08.9]} 60... Ke6 {[%clk
0:00:04.9]} 61. Re1 {[%clk 0:00:09.1]} 61... Nf3 {[%clk 0:00:05.5]} 62. Re3
{[%clk 0:00:08.6]} 62... Kd5 {[%clk 0:00:05.6]} 63. Kf4 {[%clk 0:00:08.5]} 63...
Kd4 {[%clk 0:00:06.1]} 64. Re2 {[%clk 0:00:08.1]} 64... Kd3 {[%clk 0:00:05.6]}
65. Re3+ {[%clk 0:00:08.4]} 65... Kd4 {[%clk 0:00:05.7]} 66. Re2 {[%clk
0:00:08.4]} 66... Re8 {[%clk 0:00:05]} 67. Re3 {[%clk 0:00:06.9]} 67... Rf8+
{[%clk 0:00:05.2]} 68. Kg3 {[%clk 0:00:06.8]} 68... Kxe3 {[%clk 0:00:05.7]} 0-1